Cogmind - Beta 16 *** ADVENTURER MODE // 2025.11.15 @ 18:09:22 Player: oshi0ne1 Result: Destroyed by as-34495 with Assembled Blade Performance ------------- Evolutions (1) 500 Regions Visited (3) 600 Robots Destroyed (8) 40 Value Destroyed (217) 217 Prototype IDs (0) 0 Alien Tech Used (0) 0 Bonus (200) 200 TOTAL SCORE: 1557 Bonus ------- Pacifist 200 Cogmind --------- Core Integrity 0/400 Matter 290/300 Energy 330/350 System Corruption 2% Temperature Cool (0) Movement Core (150) Ox2 Location -9/Mines Parts ------- > --- POWER (1) -------- (None) > --- PROPULSION (2) --- (None) > --- UTILITY (4) ------ High-capacity Battery Structural Scanner > --- WEAPON (2) ------- Mining Claw > --- INVENTORY (5) ---- Datajack Peak State ------------ > --- POWER ------------ Light Ion Engine > --- PROPULSION ------- Compact Wheel Compact Wheel > --- UTILITY ---------- Small Storage Unit High-capacity Battery Terrain Scanner Light Armor Plating > --- WEAPON ----------- Autogun Rocket Launcher > --- INVENTORY -------- Light Ion Engine Wheel EM Pulse Gun Assault Rifle Light Cannon Datajack Mining Claw [Rating: 11] Favorites ----------- Power Light Ion Engine Engine Light Ion Engine Propulsion Compact Wheel Wheel Compact Wheel Utility Small Storage Unit Device Terrain Scanner Storage Small Storage Unit Protection Light Armor Plating Weapon EM Pulse Gun Energy Gun EM Pulse Gun Ballistic Gun Assault Rifle Ballistic Cannon Light Cannon Launcher Rocket Launcher Slashing Weapon Mining Claw Build | -11 -10 -9 -9 ------- Run | Yrd Mat Mat Min Slots Evolved 2 | . . 2 . Power . | . . . . Propulsion . | . . . . Utility 2 | . . 2 . Weapon . | . . . . Parts Attached 17 | 6 1 3 7 Power 2 | 1 . . 1 Engine 2 | 1 . . 1 Core . | . . . . Reactor . | . . . . Propulsion 3 | 2 . . 1 Treads . | . . . . Leg . | . . . . Wheel 3 | 2 . . 1 Hover . | . . . . Flight . | . . . . Utility 6 | 1 1 2 2 Device 3 | . 1 1 1 Storage 2 | 1 . 1 . Processor . | . . . . Hackware . | . . . . Protection 1 | . . . 1 Artifact . | . . . . Weapon 6 | 2 . 1 3 Energy Gun 1 | 1 . . . Energy Cannon . | . . . . Ballistic Gun 2 | 1 . 1 . Ballistic Cannon 1 | . . . 1 Launcher 1 | . . . 1 Special Weapon . | . . . . Impact Weapon . | . . . . Slashing Weapon 1 | . . . 1 Piercing Weapon . | . . . . Special Melee Weapon . | . . . . Unidentified Prototypes . | . . . . Parts Lost 14 | . . 1 13 Power 2 | . . . 2 Propulsion 3 | . . . 3 Utility 4 | . . 1 3 Weapon 5 | . . . 5 Highest Loss Streak 7 | . . 1 7 To Critical Strikes 1 | . . . 1 Average Backups 3 | . 2 5 4 Power . | . 1 1 . Propulsion . | . . 1 . Utility . | . . . . Weapon 1 | . . 2 2 Tool/Special . | . . . . Unused Backups 1 | . . . 1 Power . | . . . . Propulsion . | . . . . Utility . | . . . . Weapon . | . . . . Tool/Special 1 | . . . 1 Average Slot Usage (%) 82 | . 88 92 72 Engine 10 | . 14 11 7 Wheel 18 | . 28 22 8 Device 9 | . 3 15 11 Storage 18 | . 14 22 21 Protection 1 | . . . 3 Energy Gun 9 | . 14 11 5 Ballistic Gun 10 | . 14 11 6 Slashing Weapon 2 | . . . 4 Peak Build Rating 11 | 6 7 10 11 Average Rating 6 | 4 6 9 6 On Entrance 5 | . 6 7 9 Avg Prop Armor Cover (%) . | . . . . Naked Turns . | . . . . Heaviest Build 21 | 12 14 20 21 Greatest Support 32 | 32 32 32 32 Greatest Overweight (x) 5 | 2 . . 5 Average Overweight (x) . | . . . 1 Largest Inventory Capacity 8 | 8 8 8 8 Average Capacity 7 | 7 8 8 7 Most Carried 8 | 1 6 7 8 Average Carried 3 | . 2 5 4 Final Capacity 8 | 8 8 8 5 Final Carried 7 | 1 6 7 1 Class Distribution -------------------- 100% | Mutant Dominant Class ---------------- Mutant | -10/Materials Mutant | -9/Materials Mutant | -9/Mines Resources | -11 -10 -9 -9 ----------- Run | Yrd Mat Mat Min Matter Collected 532 | 229 . 140 163 Remotely . | . . . . Salvage Created 267 | . . 102 165 Parts 14 | . . 8 6 Haulers Intercepted . | . . . . Recyclers Shooed . | . . . . Parts Field Recycled . | . . . . Retrieved Matter . | . . . . Parts Self-Destructed . | . . . . Prevented . | . . . . Parts Restored . | . . . . Kills | -11 -10 -9 -9 ------- Run | Yrd Mat Mat Min Combat Hostiles Destroyed 16 | . . 2 14 Melee 5 | . . . 5 Guns 8 | . . 2 6 Cannons 3 | . . . 3 Classes Destroyed 6 | . . 2 4 Worker 1 | . . . 1 Swarmer 3 | . . . 3 Grunt 1 | . . 1 . Brawler 1 | . . 1 . Demolisher 2 | . . . 2 Assembled 9 | . . . 9 Best Kill Streak 6 | . . 2 6 Combat Bots Only 6 | . . 2 6 Max Kills in Single Turn 1 | . . 1 1 Gunslinging . | . . . . Exploded . | . . . . Melee 1 | . . . 1 Uniques/NPCs Destroyed . | . . . . Combat | -11 -10 -9 -9 -------- Run | Yrd Mat Mat Min Hostile Shots Fired 89 | . . 9 80 Missed 17 | . . 2 15 Hits 72 | . . 7 65 Melee 15 | . . 1 14 Projectile 57 | . . 6 51 AOE 19 | . . . 19 Critical Strikes 2 | . . . 2 Damage Taken 1344 | . . 78 1266 Core 416 | . . 26 390 Absorbed by Shields . | . . . . Ignored by Resistances 376 | . . 24 352 Core Remaining (%) 100 | 100 100 . . Volleys Fired 41 | . 3 8 30 Largest 1 | . 1 1 1 Hottest 40 | . 20 23 40 Shots Fired 41 | . 3 8 30 Gun 27 | . 3 8 16 Cannon 8 | . . . 8 Launcher 6 | . . . 6 Special . | . . . . Kinetic 29 | . 3 8 18 Thermal . | . . . . Explosive 6 | . . . 6 Electromagnetic 6 | . . . 6 Robot Hit Streak 11 | . 1 6 11 Robot Miss Streak 2 | . 2 2 1 Penetration Max . | . . . . Secondary Targets . | . . . . Shots Hit Robots 37 | . 1 6 30 Core Hits 33 | . 1 3 29 Critical Kills . | . . . . Critical Parts Destroyed . | . . . . Critical Strikes 1 | . . . 1 Corrupt 1 | . . . 1 Melee Attacks 12 | . . . 12 Impact . | . . . . Slashing 12 | . . . 12 Piercing . | . . . . Sneak Attacks . | . . . . Combat Hostiles . | . . . . Follow-up Attacks . | . . . . Damage Inflicted 734 | . 10 94 630 Guns 253 | . 10 94 149 Cannons 119 | . . . 119 Explosions 164 | . . . 164 Melee 198 | . . . 198 Ramming . | . . . . Kinetic 318 | . 10 94 214 Thermal . | . . . . Explosive 164 | . . . 164 Electromagnetic 54 | . . . 54 Impact . | . . . . Slashing 198 | . . . 198 Piercing . | . . . . Highest Corruption 2 | . . 2 2 Average Corruption 2 | . . 2 2 Corruption Purged . | . . . . Corruption Blocked . | . . . . Effects 6 | . . 3 3 Matter Fused 2 | . . 2 . Heat Flow Errors 3 | . . 1 2 Data Loss (major) 1 | . . . 1 Overload Shots . | . . . . Overflow Damage . | . . . . Projectiles . | . . . . Explosions . | . . . . Melee . | . . . . Knockbacks 2 | . . . 2 Impact . | . . . . Kinetic 2 | . . . 2 Secondary . | . . . . Self-Inflicted Damage . | . . . . Shots . | . . . . Rammed . | . . . . Targets Rammed . | . . . . Kicked . | . . . . Crushed . | . . . . Highest Temperature 239 | . . 110 239 Average Temperature 109 | . . 38 130 Received Heat Transfer 156 | . . 36 120 Siege Activations . | . . . . Martial Activations . | . . . . Shielding Activations . | . . . . Robots Disrupted . | . . . . Combat Hostiles . | . . . . Robots Corrupted . | . . . . Combat Hostiles . | . . . . Parts Fried . | . . . . Impact Corruptions . | . . . . Robots Melted . | . . . . Combat Hostiles . | . . . . Parts Melted . | . . . . Heat Transferred . | . . . . Parts Sabotaged . | . . . . Parts Stolen . | . . . . Parts Stripped . | . . . . Power Chain Reactions . | . . . . Alert | -11 -10 -9 -9 ------- Run | Yrd Mat Mat Min Maximum Alert Level . | . . . . Low Security (%) 100 | 100 100 100 100 Level 1 . | . . . . Level 2 . | . . . . Level 3 . | . . . . Level 4 . | . . . . Level 5 . | . . . . High Security . | . . . . Max Security . | . . . . Peak Influence 76 | . . 50 76 Initial 6 | . . . 6 Average 13 | . . 21 24 Influence Increases 199 | . . 59 140 Destroy 0b10 Robot/C 140 | . . 40 100 Destroy 0b10 Robot/NC 5 | . . . 5 Destroy Leader 30 | . . 10 20 Disable Machine 9 | . . 9 . Destroy Structure 15 | . . . 15 Influence Decreases 199 | . . 39 160 Entered New Map 14 | . . . 14 Time Decay 109 | . . 39 70 Lost Part 76 | . . . 76 Squads Dispatched . | . . . . Investigation . | . . . . Extermination . | . . . . Reinforcement . | . . . . Assault . | . . . . Garrison . | . . . . Intercept . | . . . . Searches Triggered . | . . . . Construction Impeded . | . . . . Haulers Reinforced . | . . . . Active Scanning Responses . | . . . . Cargo Convoy Interrupts . | . . . . Stealth | -11 -10 -9 -9 --------- Run | Yrd Mat Mat Min Distress Signals . | . . . . Communications Jammed . | . . . . Distress Signals . | . . . . Times Spotted 29 | . 1 2 26 Peak Tracking Total 9 | . 1 2 9 Tactical Retreats 2 | . . . 2 Traps | -11 -10 -9 -9 ------- Run | Yrd Mat Mat Min Traps Triggered 1 | . 1 . . Indirectly . | . . . . Trap Hack Attempts . | . . . . Triggered . | . . . . Disarmed . | . . . . Reprogrammed . | . . . . Reused . | . . . . Traps Extracted . | . . . . Installed . | . . . . Triggered . | . . . . Machines | -11 -10 -9 -9 ---------- Run | Yrd Mat Mat Min Machines Disabled 1 | . . 1 . Max in Single Turn 1 | . . 1 . Machines Repaired . | . . . . Machines Dismantled . | . . . . Machines Sabotaged . | . . . . Overloaded Fab Kills . | . . . . Hacking | -11 -10 -9 -9 --------- Run | Yrd Mat Mat Min Machines Accessed 1 | . 1 . . Terminals 1 | . 1 . . Fabricators . | . . . . Repair Stations . | . . . . Recycling Units . | . . . . Scanalyzers . | . . . . Garrison Access . | . . . . Total Hacks 4 | . 4 . . Successful 2 | . 2 . . Failed 2 | . 2 . . Catastrophic . | . . . . Database Lockouts . | . . . . Manual . | . . . . Terminals 4 | . 4 . . Fabricators . | . . . . Repair Stations . | . . . . Recycling Units . | . . . . Scanalyzers . | . . . . Garrison Access . | . . . . Terminal Hacks 2 | . 2 . . Record 2 | . 2 . . Fabricator Hacks . | . . . . Repair Station Hacks . | . . . . Recycling Unit Hacks . | . . . . Scanalyzer . | . . . . Garrison Access Hacks . | . . . . Unauthorized Hacks . | . . . . Terminals . | . . . . Fabricators . | . . . . Repair Stations . | . . . . Recycling Units . | . . . . Scanalyzers . | . . . . Garrison Access . | . . . . Data Cores Recovered . | . . . . Used . | . . . . Hacking Detections . | . . . . Full Trace Events . | . . . . Feedback Events . | . . . . Feedback Blocked . | . . . . Robot Schematics Acquired . | . . . . Robots Built . | . . . . Authchips . | . . . . Time . | . . . . Total Robot Build Rating . | . . . . Part Schematics Acquired . | . . . . Parts Built . | . . . . Authchips . | . . . . Time . | . . . . Total Part Build Rating . | . . . . Part Studies Acquired . | . . . . Parts Repaired . | . . . . Time . | . . . . Parts Recycled . | . . . . Recycled Matter . | . . . . Retrieved Matter . | . . . . Retrieved Components . | . . . . Parts Scanalyzed . | . . . . Part Schematics Acquired . | . . . . Parts Damaged . | . . . . Bothacking | -11 -10 -9 -9 ------------ Run | Yrd Mat Mat Min Used RIF Installer . | . . . . Robots Hacked . | . . . . Non-combat . | . . . . Combat . | . . . . Robot Hacks Applied . | . . . . Relay Couplers Released . | . . . . Fabnet Peak Effective % . | . . . . Robots Rewired . | . . . . Allies Hacked . | . . . . Hacks Repelled . | . . . . Allies | -11 -10 -9 -9 -------- Run | Yrd Mat Mat Min Total Allies . | . . . . Largest Group . | . . . . Highest-Rated Group . | . . . . Highest-Rated Ally . | . . . . Total Orders . | . . . . Ally Attacks . | . . . . Total Damage . | . . . . Kills . | . . . . Allies Corrupted . | . . . . Allies Melted . | . . . . Intel | -11 -10 -9 -9 ------- Run | Yrd Mat Mat Min Active Infowar (turns) 446 | . 66 117 263 Terrain 379 | . . 116 263 ECM 110 | . 66 44 . Robot Analysis Total . | . . . . Derelict Logs Recovered . | . . . . Drone Launches . | . . . . Drone Recoveries . | . . . . Exploration | -11 -10 -9 -9 ------------- Run | Yrd Mat Mat Min Turns Passed 667 | 67 218 117 265 Spaces Moved 399 | 56 166 97 80 Core 43 | 14 . . 29 Treads . | . . . . Legs . | . . . . Wheels 356 | 42 166 97 51 Hover . | . . . . Flight . | . . . . Fastest Speed 50 | 50 100 100 95 Average Speed 112 | 100 100 100 163 Slowest Speed 300 | 150 100 100 300 Overloaded Moves . | . . . . Propulsion Burnouts . | . . . . Robots Hopped . | . . . . Potential Cave-ins 2 | . . . 2 Cave-ins Triggered . | . . . . Exploration Rate (%) 18 | 4 43 12 14 Regions Visited 3 Branch Regions 1 Pre-discovered Areas . | . . . . Known Exits Taken . | . . . . Unknown Exits Taken 3 | 1 1 1 . Scrap Searched . | . . . . Spaces Dug . | . . . . Terrain Destroyed 57 | . . . 57 Melee . | . . . . Projectile . | . . . . AOE 57 | . . . 57 Terrain Rammed . | . . . . Walls Destroyed . | . . . . Machines Disabled . | . . . . Actions | -11 -10 -9 -9 --------- Run | Yrd Mat Mat Min Total 549 | 64 213 110 162 Wait 64 | 2 37 . 25 Move 396 | 55 165 96 80 Hop . | . . . . Pick Up 11 | 1 5 3 2 Fast Attach 12 | 6 3 . 3 Attach 8 | . . 2 6 Detach 1 | . . . 1 Swap 1 | . . 1 . Drop 3 | . . . 3 Fire 41 | . 3 8 30 Melee 12 | . . . 12 Ram . | . . . . Kick . | . . . . Crush . | . . . . Escape Stasis . | . . . . Rewire . | . . . . Trap . | . . . . Miscellaneous . | . . . . Route ------- -11/Scrapyard -10/Materials -9/Materials -9/Mines History --------- Turn | Location | Event 39 | -11/Scrapyard | Discovered new exit (range 15) 68 | -11/Scrapyard | Entered Materials 254 | -10/Materials | Discovered new exit (range 16) 286 | -10/Materials | Entered another Materials area 286 | -9/Materials | Evolved 2 slots: Utility x2 308 | -9/Materials | Build established: Mutant 338 | -9/Materials | Discovered new exit (range 16) 403 | -9/Materials | Entered Mines 410 | -9/Mines | Received a Rocket Launcher from a helpful Derelict 457 | -9/Mines | Assembled infested the area 538 | -9/Mines | Lost 7 parts (1p3n1u2w) 547 | -9/Mines | Core integrity fell below 50% 654 | -9/Mines | Core integrity fell below 20% 668 | -9/Mines | Destroyed by as-34495 with Assembled Blade Last Messages --------------- U-05 Engineer lays Concrete. Lgt. Ion Engine destroyed. as-58860 destroyed. U-05 Engineer builds a Wall. Acquired 2 matter. U-05 Engineer builds a Wall. System corrupted: Substantial component data lost. U-05 Engineer builds a Wall. U-05 Engineer lays Concrete. U-05 Engineer builds a Wall. U-05 Engineer lays Concrete. U-05 Engineer builds a Wall. U-05 Engineer lays Concrete. U-05 Engineer builds a Wall. Sml. Storage Unit destroyed. as-53840 destroyed. U-05 Engineer lays Concrete. Assault Rifle destroyed. Terrain Scanner destroyed. Map ----- +----------------------------------------------------+ | | | | | | | | | | | | | ????????????????????#### # ####????##????????????? | | ???????????????##???# # ### ##???????????? | | ??????????????#?? ??# # ## #???????#???? | | ????????????????? ??# ### ##???######?? | | ?????????????# $ ## # * ## # ###### #?? | | ?????????????# % = % #?? | | ??????? !*=*#### # ## # ## ######## #?? | | ?????????????????????# #### ## #### ##???# #?? | | ?????????????##? ????#### # #????# ##? | | ???????????????? ?????## % # # # ##????# #?? | | ???????????????? ?#??#?## ####### ###????# #?? | | ?????????????????##???#?# #????##?###?????### #### | | ???????????????#???????## ##??####?#????????# | | ???????????????#???????## ####????#?#?#?##### #### | | ????????????????????#?### # ##???#?#??## ##?? | | ???????????????????#?## # ##;;##???????# #?? | | ??????????????#??#?#??# # % #?####??# % #? | | ??????????????#???????##; # #???#???# #? | | ?????????????#????#?###;% % # #???????## ##? | | ???????????????# ???# %@# #????????### ##?? | | ???????????????????# a ## ##?????????#####??? | | ???????????????? a ^ #?#???????????????# | | ???????????? ??? ????????????? | | ??????????? ## #### %% $ ???????????????? | | ???????????????#????## ###########??????????????? | | ?????????????????????###???#?????????????????????? | | ?????????????????????????????????????????????????? | | ???????????????????????#?????????????????????????? | | ?????????????????????????????????????????????????? | | ?????????????????????????????????????????????????? | | ????????????????????????? ???????????????????????? | | ?????????????????????????????????????????????????? | | ??????????????????????????? ?????????????????????? | | ?????????????????????????????????????????????????? | | ?????????????????????????????????????????????????? | | ?????????????????????????????????????????????????? | | ?????????????????????????????????????????????????? | | ?????????????????????????????????????????????????? | | ?????????????????????????????????????????????????? | | ?????????????????????????????????????????????????? | | ?????????????????????????????????????????????????? | | ?????????????????????????????????????????????????? | | ?????????????????????????????????????????????????? | | ?????????????????????????????????????????????????? | +----------------------------------------------------+ Best States ------------- Heat Dissipation 28 Energy Generation 10 Energy Capacity 375 Matter Stores 300 Matter Capacity 300 Sight Range 16 Terrain Scan Range 14 Terrain Scan Density 10 ECM Strength 1 Armor Coverage 150 Resistance: KI 20 Resistance: TH 20 Resistance: EX 20 Resistance: EM 20 Resistance: I 20 Resistance: S 20 Resistance: P 20 Evasion (%) 40 Offensive Hacking 10 Item Schematics ----------------- None Robot Schematics ------------------ None Fabricated ------------ Nothing Repaired ---------- Nothing Studied --------- None Alien Tech Used ----------------- None Achievements -------------- None Challenges ------------ None Game ------ Seed SurveybotMiningNanovents Manual? 0 Play Time 00:11:58 Cumulative 8.2 hours Start 2025.11.15 @ 18:01:30 End 2025.11.15 @ 18:09:22 Sessions 1 Manual Loads 0 Difficulty Adventurer Special Mode None Game No. 14 Rogue 0 Adventurer 14 Explorer 0 Win Type - Total 0 Types 0/0/0/0/0/0/0/0/0/0 Lore% 8 Gallery% 14 Achievement% 11 Wizard Run 0 Options --------- Layout 1 ASCII 0 Keyboard 0 Movement Mouse Keybinds 0 Fullscreen 1 Font 24/X11 Map View 50x35 Zoom Use 0% Tactical HUD 0 Map Filters NONE Filters NONE Steam 1 RUN: 3cb211be-58ee-4f4c-9653-690defe7879b